[Event "Titled Tuesday Blitz May 30 Early 2023"]
[White "zano2023"]
[Black "Kaganskiy, Gleb"]
[BlackFideId "4132025"]
[WhiteElo "2167"]
[BlackElo "2165"]
[Result "1-0"]
[Round "10"]
[TimeControl "180+2"]
[Date "2023.05.30"]
[WhiteClock "0:01:29"]
[BlackClock "0:01:24"]

1. d4 {[%clk 0:03:00]}  d5 {[%clk 0:02:56]} 2. Nf3 {[%clk 0:03:00]}  Nf6 {[%clk 0:02:55]} 3. Nbd2 {[%clk 0:03:00]}  e6 {[%clk 0:02:47]} 4. e3 {[%clk 0:03:01]}  Be7 {[%clk 0:02:47]} 5. Bd3 {[%clk 0:03:01]}  O-O {[%clk 0:02:47]} 6. O-O {[%clk 0:03:02]}  c5 {[%clk 0:02:47]} 7. c3 {[%clk 0:03:02]}  Nc6 {[%clk 0:02:46]} 8. dxc5 {[%clk 0:03:00]}  Bxc5 {[%clk 0:02:46]} 9. e4 {[%clk 0:03:00]}  Bb6 {[%clk 0:02:44]} 10. Qe2 {[%clk 0:02:59]}  h6 {[%clk 0:02:34]} 11. h3 {[%clk 0:02:54]}  a6 {[%clk 0:02:33]} 12. Kh1 {[%clk 0:02:34]}  Re8 {[%clk 0:02:30]} 13. Re1 {[%clk 0:02:21]}  Bc7 {[%clk 0:02:30]} 14. b3 {[%clk 0:02:14]}  d4 {[%clk 0:02:20]} 15. cxd4 {[%clk 0:02:00]}  Nxd4 {[%clk 0:02:20]} 16. Nxd4 {[%clk 0:01:55]}  Qxd4 {[%clk 0:02:21]} 17. Rb1 {[%clk 0:01:54]}  Rd8 {[%clk 0:02:07]} 18. Bc2 {[%clk 0:01:40]}  Bf4 {[%clk 0:01:36]} 19. Nf3 {[%clk 0:01:34]}  Qd6 {[%clk 0:01:30]} 20. Rd1 {[%clk 0:01:30]}  Qc7 {[%clk 0:01:25]} 21. Rxd8+ {[%clk 0:01:29]}  Qxd8 {[%clk 0:01:24]} 22. Bxf4 {[%clk 0:01:29]} 1-0


[Site "https://www.chess.com"]

[Event "Titled Tuesday Blitz May 30 Early 2023"]
[White "Koridze, Lile"]
[Black "Maluco_do_Natal_00"]
[WhiteFideId "13612514"]
[WhiteElo "2047"]
[BlackElo "2056"]
[Result "1-0"]
[Round "10"]
[TimeControl "180+2"]
[Date "2023.05.30"]
[WhiteClock "0:01:07"]
[BlackClock "0:00:00"]

1. d4 {[%clk 0:03:00]}  d5 {[%clk 0:02:59]} 2. c4 {[%clk 0:03:00]}  c6 {[%clk 0:02:59]} 3. Nf3 {[%clk 0:03:00]}  Nf6 {[%clk 0:02:59]} 4. e3 {[%clk 0:03:00]}  g6 {[%clk 0:02:59]} 5. h3 {[%clk 0:02:58]}  Bg7 {[%clk 0:02:59]} 6. Bd3 {[%clk 0:02:59]}  a6 {[%clk 0:02:58]} 7. O-O {[%clk 0:02:59]}  O-O {[%clk 0:02:57]} 8. Nc3 {[%clk 0:02:59]}  dxc4 {[%clk 0:02:58]} 9. Bxc4 {[%clk 0:03:00]}  b5 {[%clk 0:02:58]} 10. Bd3 {[%clk 0:03:00]}  Bb7 {[%clk 0:02:59]} 11. a3 {[%clk 0:03:01]}  Nbd7 {[%clk 0:02:59]} 12. Qe2 {[%clk 0:03:01]}  c5 {[%clk 0:02:59]} 13. dxc5 {[%clk 0:03:01]}  Nxc5 {[%clk 0:02:59]} 14. Bc2 {[%clk 0:03:01]}  Rc8 {[%clk 0:02:50]} 15. e4 {[%clk 0:03:01]}  Qc7 {[%clk 0:02:29]} 16. Be3 {[%clk 0:02:57]}  Ncxe4 {[%clk 0:02:25]} 17. Nxe4 {[%clk 0:02:48]}  Nxe4 {[%clk 0:02:24]} 18. Bb3 {[%clk 0:02:46]}  e6 {[%clk 0:01:51]} 19. Rac1 {[%clk 0:02:44]}  Qb8 {[%clk 0:01:46]} 20. Rfd1 {[%clk 0:02:42]}  Rxc1 {[%clk 0:01:43]} 21. Rxc1 {[%clk 0:02:42]}  Rc8 {[%clk 0:01:41]} 22. Rd1 {[%clk 0:02:42]}  Rd8 {[%clk 0:01:37]} 23. Rc1 {[%clk 0:02:42]}  h6 {[%clk 0:01:19]} 24. Bb6 {[%clk 0:02:37]}  Rc8 {[%clk 0:01:15]} 25. Rd1 {[%clk 0:02:37]}  Bc6 {[%clk 0:01:07]} 26. Bd4 {[%clk 0:02:28]}  Rd8 {[%clk 0:01:02]} 27. Bxg7 {[%clk 0:02:25]}  Kxg7 {[%clk 0:01:02]} 28. Rc1 {[%clk 0:02:25]}  Bb7 {[%clk 0:00:59]} 29. Qe3 {[%clk 0:02:25]}  Kh7 {[%clk 0:00:24]} 30. Qb6 {[%clk 0:02:25]}  Rc8 {[%clk 0:00:04]} 31. Rd1 {[%clk 0:02:21]}  Nc5 {[%clk 0:00:03]} 32. Nd4 {[%clk 0:02:06]}  Nxb3 {[%clk 0:00:01]} 33. Nxb3 {[%clk 0:02:04]}  Bd5 {[%clk 0:00:02]} 34. Qe3 {[%clk 0:02:02]}  b4 {[%clk 0:00:01]} 35. Nd4 {[%clk 0:01:59]}  bxa3 {[%clk 0:00:01]} 36. bxa3 {[%clk 0:01:59]}  Qb6 {[%clk 0:00:02]} 37. Qf4 {[%clk 0:01:58]}  Rc4 {[%clk 0:00:02]} 38. Qxf7+ {[%clk 0:01:58]}  Kh8 {[%clk 0:00:02]} 39. Qxg6 {[%clk 0:01:48]}  Rxd4 {[%clk 0:00:02]} 40. Qf6+ {[%clk 0:01:47]}  Kh7 {[%clk 0:00:02]} 41. Rxd4 {[%clk 0:01:46]}  Qb1+ {[%clk 0:00:02]} 42. Kh2 {[%clk 0:01:46]}  Qb8+ {[%clk 0:00:02]} 43. g3 {[%clk 0:01:45]}  Qb1 {[%clk 0:00:02]} 44. Rxd5 {[%clk 0:01:22]}  exd5 {[%clk 0:00:02]} 45. Qf7+ {[%clk 0:01:22]}  Kh8 {[%clk 0:00:02]} 46. Qxd5 {[%clk 0:01:22]}  Qa1 {[%clk 0:00:01]} 47. Qa8+ {[%clk 0:01:19]}  Kh7 {[%clk 0:00:01]} 48. Qxa6 {[%clk 0:01:18]}  h5 {[%clk 0:00:02]} 49. Qb7+ {[%clk 0:01:18]}  Kh6 {[%clk 0:00:02]} 50. Qc6+ {[%clk 0:01:18]}  Kh7 {[%clk 0:00:02]} 51. Qd7+ {[%clk 0:01:18]}  Kh6 {[%clk 0:00:02]} 52. Qe6+ {[%clk 0:01:16]}  Kg7 {[%clk 0:00:02]} 53. Qe3 {[%clk 0:01:14]}  Kh7 {[%clk 0:00:02]} 54. Kg2 {[%clk 0:01:11]}  Kg6 {[%clk 0:00:02]} 55. Qe4+ {[%clk 0:01:09]}  Kh6 {[%clk 0:00:02]} 56. a4 {[%clk 0:01:09]}  Kg7 {[%clk 0:00:02]} 57. Qb7+ {[%clk 0:01:07]}  Kh6 {[%clk 0:00:02]} 58. Qb6+ {[%clk 0:01:07]}  Kh7 {[%clk 0:00:02]} 59. a5 {[%clk 0:01:08]}  Qa2 {[%clk 0:00:02]} 60. Qb7+ {[%clk 0:01:07]}  Kh6 {[%clk 0:00:02]} 61. a6 {[%clk 0:01:08]}  Qa5 {[%clk 0:00:01]} 62. a7 {[%clk 0:01:08]}  h4 {[%clk 0:00:00]} 63. a8=Q {[%clk 0:01:07]} 1-0


[Site "https://www.chess.com"]

[Event "Titled Tuesday Blitz May 30 Early 2023"]
[White "Kriti Mayur Patel"]
[Black "Rose, Felix"]
[WhiteFideId "35061780"]
[BlackFideId "5105722"]
[WhiteElo "1306"]
[BlackElo "2039"]
[Result "0-1"]
[Round "10"]
[TimeControl "180+2"]
[Date "2023.05.30"]
[WhiteClock "0:00:16"]
[BlackClock "0:00:19"]

1. e4 {[%clk 0:03:00]}  c5 {[%clk 0:02:58]} 2. d4 {[%clk 0:03:01]}  cxd4 {[%clk 0:02:58]} 3. c3 {[%clk 0:03:00]}  d3 {[%clk 0:02:57]} 4. Bxd3 {[%clk 0:02:59]}  Nc6 {[%clk 0:02:58]} 5. Nf3 {[%clk 0:02:58]}  g6 {[%clk 0:02:58]} 6. c4 {[%clk 0:02:53]}  Bg7 {[%clk 0:02:58]} 7. O-O {[%clk 0:02:53]}  d6 {[%clk 0:02:59]} 8. Nc3 {[%clk 0:02:54]}  Nf6 {[%clk 0:02:59]} 9. h3 {[%clk 0:02:51]}  O-O {[%clk 0:02:59]} 10. Bg5 {[%clk 0:02:51]}  Qa5 {[%clk 0:02:58]} 11. Qe2 {[%clk 0:02:49]}  Be6 {[%clk 0:02:58]} 12. a3 {[%clk 0:02:48]}  Rfc8 {[%clk 0:02:57]} 13. b4 {[%clk 0:02:48]}  Qd8 {[%clk 0:02:55]} 14. Rac1 {[%clk 0:02:47]}  Nd7 {[%clk 0:02:39]} 15. Rfd1 {[%clk 0:02:45]}  Nce5 {[%clk 0:02:35]} 16. Nd5 {[%clk 0:02:28]}  Bxd5 {[%clk 0:02:11]} 17. cxd5 {[%clk 0:02:25]}  Nxf3+ {[%clk 0:01:50]} 18. Qxf3 {[%clk 0:02:21]}  Bb2 {[%clk 0:01:31]} 19. Rb1 {[%clk 0:01:53]}  Bf6 {[%clk 0:00:50]} 20. Bh6 {[%clk 0:01:50]}  Rc3 {[%clk 0:00:46]} 21. a4 {[%clk 0:01:35]}  Rac8 {[%clk 0:00:36]} 22. Bd2 {[%clk 0:01:27]}  Ne5 {[%clk 0:00:34]} 23. Qe2 {[%clk 0:01:13]}  Rxd3 {[%clk 0:00:24]} 24. f4 {[%clk 0:01:12]}  Qb6+ {[%clk 0:00:19]} 25. Kh2 {[%clk 0:01:07]}  Nf3+ {[%clk 0:00:17]} 26. gxf3 {[%clk 0:01:04]}  Qd4 {[%clk 0:00:16]} 27. Be1 {[%clk 0:00:36]}  Re3 {[%clk 0:00:14]} 28. Qf2 {[%clk 0:00:34]}  Rd3 {[%clk 0:00:10]} 29. Qxd4 {[%clk 0:00:32]}  Rxd4 {[%clk 0:00:10]} 30. Rxd4 {[%clk 0:00:32]}  Bxd4 {[%clk 0:00:11]} 31. Bh4 {[%clk 0:00:32]}  f6 {[%clk 0:00:11]} 32. Kg3 {[%clk 0:00:32]}  Rc4 {[%clk 0:00:12]} 33. Kg4 {[%clk 0:00:31]}  Kf7 {[%clk 0:00:12]} 34. Be1 {[%clk 0:00:31]}  a6 {[%clk 0:00:12]} 35. b5 {[%clk 0:00:30]}  a5 {[%clk 0:00:11]} 36. Bxa5 {[%clk 0:00:30]}  Rxa4 {[%clk 0:00:12]} 37. Be1 {[%clk 0:00:28]}  e6 {[%clk 0:00:13]} 38. dxe6+ {[%clk 0:00:27]}  Kxe6 {[%clk 0:00:14]} 39. Rc1 {[%clk 0:00:26]}  f5+ {[%clk 0:00:14]} 40. exf5+ {[%clk 0:00:25]}  gxf5+ {[%clk 0:00:15]} 41. Kg5 {[%clk 0:00:26]}  Bf6+ {[%clk 0:00:15]} 42. Kh6 {[%clk 0:00:22]}  Rxf4 {[%clk 0:00:16]} 43. Kxh7 {[%clk 0:00:20]}  Rxf3 {[%clk 0:00:16]} 44. h4 {[%clk 0:00:21]}  Rh3 {[%clk 0:00:17]} 45. Rc7 {[%clk 0:00:19]}  Bxh4 {[%clk 0:00:17]} 46. Bxh4 {[%clk 0:00:19]}  Rxh4+ {[%clk 0:00:18]} 47. Kg6 {[%clk 0:00:20]}  f4 {[%clk 0:00:18]} 48. Rxb7 {[%clk 0:00:20]}  Rg4+ {[%clk 0:00:18]} 49. Kh5 {[%clk 0:00:19]}  Rg1 {[%clk 0:00:18]} 50. Rb8 {[%clk 0:00:19]}  f3 {[%clk 0:00:19]} 51. b6 {[%clk 0:00:19]}  f2 {[%clk 0:00:19]} 52. Rf8 {[%clk 0:00:19]}  f1=Q {[%clk 0:00:19]} 53. Re8+ {[%clk 0:00:17]}  Kd7 {[%clk 0:00:19]} 54. b7 {[%clk 0:00:17]}  Rh1+ {[%clk 0:00:19]} 55. Kg6 {[%clk 0:00:16]}  Qg2+ {[%clk 0:00:19]} 56. Kf5 {[%clk 0:00:16]}  Rf1# {[%clk 0:00:19]} 0-1


[Site "https://www.chess.com"]

[Event "Titled Tuesday Blitz May 30 Early 2023"]
[White "February, Jesse Nikki"]
[Black "mohsengabr2002"]
[WhiteFideId "14312336"]
[WhiteElo "1824"]
[BlackElo "2255"]
[Result "1-0"]
[Round "10"]
[TimeControl "180+2"]
[Date "2023.05.30"]
[WhiteClock "0:00:22"]
[BlackClock "0:00:12"]

1. e4 {[%clk 0:03:00]}  c5 {[%clk 0:00:39]} 2. Nf3 {[%clk 0:03:00]}  d6 {[%clk 0:00:39]} 3. d4 {[%clk 0:03:01]}  cxd4 {[%clk 0:00:37]} 4. Nxd4 {[%clk 0:03:02]}  Nc6 {[%clk 0:00:37]} 5. Nc3 {[%clk 0:03:01]}  Qb6 {[%clk 0:00:36]} 6. Nb3 {[%clk 0:03:00]}  g6 {[%clk 0:00:36]} 7. Be3 {[%clk 0:02:59]}  Qc7 {[%clk 0:00:35]} 8. Be2 {[%clk 0:02:57]}  Bg7 {[%clk 0:00:35]} 9. Nd5 {[%clk 0:02:49]}  Qd8 {[%clk 0:00:35]} 10. c3 {[%clk 0:02:49]}  Nf6 {[%clk 0:00:35]} 11. f3 {[%clk 0:02:47]}  Nxd5 {[%clk 0:00:34]} 12. exd5 {[%clk 0:02:48]}  Ne5 {[%clk 0:00:34]} 13. O-O {[%clk 0:02:48]}  O-O {[%clk 0:00:34]} 14. f4 {[%clk 0:02:47]}  Nd7 {[%clk 0:00:33]} 15. Bf3 {[%clk 0:02:39]}  b6 {[%clk 0:00:34]} 16. Qd2 {[%clk 0:02:37]}  Nc5 {[%clk 0:00:34]} 17. Nxc5 {[%clk 0:02:32]}  bxc5 {[%clk 0:00:35]} 18. Rad1 {[%clk 0:02:31]}  Ba6 {[%clk 0:00:35]} 19. Rfe1 {[%clk 0:02:30]}  Rb8 {[%clk 0:00:36]} 20. b3 {[%clk 0:02:28]}  Qa5 {[%clk 0:00:35]} 21. c4 {[%clk 0:02:23]}  Qc7 {[%clk 0:00:35]} 22. Qf2 {[%clk 0:02:16]}  Bc8 {[%clk 0:00:34]} 23. Bc1 {[%clk 0:02:13]}  a5 {[%clk 0:00:33]} 24. Re2 {[%clk 0:02:11]}  a4 {[%clk 0:00:32]} 25. Rde1 {[%clk 0:02:10]}  axb3 {[%clk 0:00:30]} 26. Rxe7 {[%clk 0:02:09]}  Qxe7 {[%clk 0:00:20]} 27. Rxe7 {[%clk 0:02:03]}  b2 {[%clk 0:00:15]} 28. Bxb2 {[%clk 0:02:02]}  Rxb2 {[%clk 0:00:16]} 29. Qe1 {[%clk 0:02:00]}  Bd4+ {[%clk 0:00:17]} 30. Kh1 {[%clk 0:01:57]}  Bf5 {[%clk 0:00:17]} 31. Be4 {[%clk 0:01:37]}  Rfb8 {[%clk 0:00:17]} 32. Bxf5 {[%clk 0:01:20]}  gxf5 {[%clk 0:00:16]} 33. Re8+ {[%clk 0:01:18]}  Rxe8 {[%clk 0:00:17]} 34. Qxe8+ {[%clk 0:01:19]}  Kg7 {[%clk 0:00:18]} 35. h3 {[%clk 0:01:11]}  Bf2 {[%clk 0:00:17]} 36. Qd7 {[%clk 0:01:00]}  Rb1+ {[%clk 0:00:14]} 37. Kh2 {[%clk 0:01:00]}  Kf6 {[%clk 0:00:13]} 38. Qxd6+ {[%clk 0:00:59]}  Kg7 {[%clk 0:00:13]} 39. Qe5+ {[%clk 0:00:59]}  Kg6 {[%clk 0:00:13]} 40. Qd6+ {[%clk 0:00:55]}  f6 {[%clk 0:00:12]} 41. Qd8 {[%clk 0:00:50]}  Bd4 {[%clk 0:00:13]} 42. Qg8+ {[%clk 0:00:48]}  Kh5 {[%clk 0:00:14]} 43. d6 {[%clk 0:00:43]}  h6 {[%clk 0:00:13]} 44. d7 {[%clk 0:00:42]}  Kh4 {[%clk 0:00:13]} 45. Qg3+ {[%clk 0:00:41]}  Kh5 {[%clk 0:00:13]} 46. Qf3+ {[%clk 0:00:42]}  Kh4 {[%clk 0:00:13]} 47. Qg3+ {[%clk 0:00:22]}  Kh5 {[%clk 0:00:12]} 48. Qf3+ {[%clk 0:00:21]}  Kh4 {[%clk 0:00:12]} 49. g3# {[%clk 0:00:22]} 1-0


[Site "https://www.chess.com"]

[Event "Titled Tuesday Blitz May 30 Early 2023"]
[White "Levitan, Caleb Levi"]
[Black "Cramling Bellon, Anna"]
[WhiteFideId "14332620"]
[BlackFideId "32009232"]
[WhiteElo "1963"]
[BlackElo "1976"]
[Result "0-1"]
[Round "10"]
[TimeControl "180+2"]
[Date "2023.05.30"]
[WhiteClock "0:00:00"]
[BlackClock "0:00:24"]

1. e4 {[%clk 0:02:58]}  c5 {[%clk 0:02:57]} 2. Nf3 {[%clk 0:02:58]}  e6 {[%clk 0:02:57]} 3. d4 {[%clk 0:02:57]}  cxd4 {[%clk 0:02:58]} 4. Nxd4 {[%clk 0:02:57]}  Nf6 {[%clk 0:02:59]} 5. Nc3 {[%clk 0:02:56]}  Nc6 {[%clk 0:02:59]} 6. Nxc6 {[%clk 0:02:50]}  bxc6 {[%clk 0:02:59]} 7. Bd3 {[%clk 0:02:51]}  e5 {[%clk 0:02:58]} 8. O-O {[%clk 0:02:50]}  d6 {[%clk 0:02:59]} 9. f4 {[%clk 0:02:48]}  Be7 {[%clk 0:02:59]} 10. Qf3 {[%clk 0:02:39]}  O-O {[%clk 0:02:55]} 11. h3 {[%clk 0:02:34]}  Qc7 {[%clk 0:02:27]} 12. Kh1 {[%clk 0:02:31]}  c5 {[%clk 0:02:06]} 13. b3 {[%clk 0:01:57]}  Bb7 {[%clk 0:01:55]} 14. Be3 {[%clk 0:01:41]}  Rad8 {[%clk 0:01:30]} 15. Qg3 {[%clk 0:00:51]}  Nh5 {[%clk 0:01:19]} 16. Qf2 {[%clk 0:00:44]}  exf4 {[%clk 0:01:11]} 17. Bxf4 {[%clk 0:00:42]}  Bf6 {[%clk 0:00:54]} 18. Bd2 {[%clk 0:00:28]}  d5 {[%clk 0:00:44]} 19. Kg1 {[%clk 0:00:07]}  Bd4 {[%clk 0:00:42]} 20. Be3 {[%clk 0:00:08]}  Bxc3 {[%clk 0:00:41]} 21. Rad1 {[%clk 0:00:06]}  dxe4 {[%clk 0:00:39]} 22. Bc4 {[%clk 0:00:03]}  Rxd1 {[%clk 0:00:28]} 23. Rxd1 {[%clk 0:00:03]}  Qg3 {[%clk 0:00:23]} 24. Qf1 {[%clk 0:00:02]}  Qxe3+ {[%clk 0:00:23]} 25. Kh1 {[%clk 0:00:02]}  Ng3+ {[%clk 0:00:23]} 26. Kh2 {[%clk 0:00:01]}  Nxf1+ {[%clk 0:00:23]} 27. Rxf1 {[%clk 0:00:02]}  Be5+ {[%clk 0:00:24]} 28. Kh1 {[%clk 0:00:00]}  Qg3 {[%clk 0:00:24]} 0-1


[Site "https://www.chess.com"]

[Event "Titled Tuesday Blitz May 30 Early 2023"]
[White "Antonova, Nadezhda"]
[Black "Sarkar, Justin"]
[WhiteFideId "14700182"]
[BlackFideId "2010011"]
[WhiteElo "1799"]
[BlackElo "2168"]
[Result "1-0"]
[Round "10"]
[TimeControl "180+2"]
[Date "2023.05.30"]
[WhiteClock "0:00:13"]
[BlackClock "0:00:00"]

1. Nf3 {[%clk 0:02:59]}  c6 {[%clk 0:02:32]} 2. b3 {[%clk 0:02:59]}  Nf6 {[%clk 0:02:25]} 3. Bb2 {[%clk 0:03:00]}  g6 {[%clk 0:02:21]} 4. g3 {[%clk 0:03:00]}  Bg7 {[%clk 0:02:20]} 5. Bg2 {[%clk 0:03:01]}  O-O {[%clk 0:02:19]} 6. O-O {[%clk 0:03:01]}  d6 {[%clk 0:02:18]} 7. d4 {[%clk 0:03:01]}  a5 {[%clk 0:02:14]} 8. a4 {[%clk 0:03:00]}  Bf5 {[%clk 0:02:10]} 9. Nbd2 {[%clk 0:03:00]}  Qd7 {[%clk 0:02:05]} 10. Re1 {[%clk 0:03:00]}  Bh3 {[%clk 0:01:58]} 11. Bh1 {[%clk 0:03:00]}  Na6 {[%clk 0:01:43]} 12. Nc4 {[%clk 0:02:56]}  Qc7 {[%clk 0:01:35]} 13. e4 {[%clk 0:02:55]}  d5 {[%clk 0:01:21]} 14. exd5 {[%clk 0:02:52]}  cxd5 {[%clk 0:01:18]} 15. Nce5 {[%clk 0:02:51]}  Ne4 {[%clk 0:01:10]} 16. c4 {[%clk 0:02:49]}  e6 {[%clk 0:00:58]} 17. Rc1 {[%clk 0:02:10]}  Qd8 {[%clk 0:00:43]} 18. Nd2 {[%clk 0:01:20]}  f5 {[%clk 0:00:30]} 19. Ndf3 {[%clk 0:00:48]}  Nb4 {[%clk 0:00:27]} 20. Ba3 {[%clk 0:00:43]}  Re8 {[%clk 0:00:18]} 21. Bxb4 {[%clk 0:00:41]}  axb4 {[%clk 0:00:17]} 22. Nd3 {[%clk 0:00:32]}  Nc3 {[%clk 0:00:11]} 23. Qd2 {[%clk 0:00:29]}  dxc4 {[%clk 0:00:10]} 24. bxc4 {[%clk 0:00:29]}  Rxa4 {[%clk 0:00:02]} 25. Nxb4 {[%clk 0:00:26]}  Ne4 {[%clk 0:00:02]} 26. Qb2 {[%clk 0:00:20]}  Bg4 {[%clk 0:00:02]} 27. Qb3 {[%clk 0:00:16]}  Bxf3 {[%clk 0:00:01]} 28. Qxa4 {[%clk 0:00:14]}  Bxh1 {[%clk 0:00:01]} 29. Kxh1 {[%clk 0:00:14]}  Nxf2+ {[%clk 0:00:01]} 30. Kg2 {[%clk 0:00:14]}  Ne4 {[%clk 0:00:01]} 31. d5 {[%clk 0:00:13]}  exd5 {[%clk 0:00:01]} 32. Nxd5 {[%clk 0:00:13]}  Qb8 {[%clk 0:00:00]} 33. Qb5 {[%clk 0:00:13]} 1-0


[Site "https://www.chess.com"]

[Event "Titled Tuesday Blitz May 30 Early 2023"]
[White "Steenbekkers, Franck"]
[Black "salgadoLO"]
[WhiteFideId "1004220"]
[WhiteElo "2111"]
[BlackElo "2188"]
[Result "1/2-1/2"]
[Round "10"]
[TimeControl "180+2"]
[Date "2023.05.30"]
[WhiteClock "0:00:34"]
[BlackClock "0:00:05"]

1. e4 {[%clk 0:02:55]}  c5 {[%clk 0:02:59]} 2. Nf3 {[%clk 0:02:54]}  e6 {[%clk 0:02:59]} 3. c3 {[%clk 0:02:53]}  Nf6 {[%clk 0:02:59]} 4. e5 {[%clk 0:02:52]}  Nd5 {[%clk 0:02:59]} 5. d4 {[%clk 0:02:52]}  cxd4 {[%clk 0:03:00]} 6. cxd4 {[%clk 0:02:51]}  d6 {[%clk 0:03:01]} 7. Bc4 {[%clk 0:02:50]}  Bd7 {[%clk 0:02:59]} 8. O-O {[%clk 0:02:49]}  Bc6 {[%clk 0:02:59]} 9. Qe2 {[%clk 0:02:48]}  Nd7 {[%clk 0:02:59]} 10. Nc3 {[%clk 0:02:46]}  Nxc3 {[%clk 0:02:55]} 11. bxc3 {[%clk 0:02:45]}  dxe5 {[%clk 0:02:36]} 12. Nxe5 {[%clk 0:02:43]}  Nxe5 {[%clk 0:02:31]} 13. dxe5 {[%clk 0:02:43]}  Bc5 {[%clk 0:02:14]} 14. Qg4 {[%clk 0:02:40]}  Kf8 {[%clk 0:01:52]} 15. Bg5 {[%clk 0:02:36]}  Qc7 {[%clk 0:01:38]} 16. Rad1 {[%clk 0:02:33]}  h6 {[%clk 0:01:34]} 17. Bf4 {[%clk 0:02:30]}  g5 {[%clk 0:01:30]} 18. Bg3 {[%clk 0:02:28]}  Be7 {[%clk 0:01:16]} 19. Kh1 {[%clk 0:02:26]}  h5 {[%clk 0:01:13]} 20. Qd4 {[%clk 0:02:18]}  h4 {[%clk 0:01:12]} 21. Bf4 {[%clk 0:02:16]}  h3 {[%clk 0:01:00]} 22. f3 {[%clk 0:02:12]}  hxg2+ {[%clk 0:00:54]} 23. Kxg2 {[%clk 0:02:11]}  gxf4 {[%clk 0:00:54]} 24. Qxf4 {[%clk 0:02:10]}  Rd8 {[%clk 0:00:50]} 25. Bxe6 {[%clk 0:02:08]}  Be8 {[%clk 0:00:26]} 26. Rxd8 {[%clk 0:01:44]}  Bxd8 {[%clk 0:00:19]} 27. Rd1 {[%clk 0:01:43]}  Qe7 {[%clk 0:00:18]} 28. Bb3 {[%clk 0:01:36]}  Qg5+ {[%clk 0:00:18]} 29. Qxg5 {[%clk 0:01:33]}  Bxg5 {[%clk 0:00:18]} 30. Bd5 {[%clk 0:01:28]}  Bf4 {[%clk 0:00:17]} 31. Bxb7 {[%clk 0:01:25]}  Rxh2+ {[%clk 0:00:15]} 32. Kg1 {[%clk 0:01:24]}  Rxa2 {[%clk 0:00:16]} 33. Rd8 {[%clk 0:01:21]}  Ke7 {[%clk 0:00:14]} 34. Ra8 {[%clk 0:01:20]}  Bxe5 {[%clk 0:00:13]} 35. Bd5 {[%clk 0:01:15]}  Bxc3 {[%clk 0:00:12]} 36. Bxa2 {[%clk 0:01:14]}  Bd4+ {[%clk 0:00:11]} 37. Kg2 {[%clk 0:01:13]}  Bb6 {[%clk 0:00:11]} 38. Bd5 {[%clk 0:01:06]}  Bd7 {[%clk 0:00:07]} 39. Rh8 {[%clk 0:01:02]}  Be6 {[%clk 0:00:06]} 40. Bxe6 {[%clk 0:00:58]}  fxe6 {[%clk 0:00:07]} 41. Rh4 {[%clk 0:00:57]}  Kd6 {[%clk 0:00:07]} 42. Ra4 {[%clk 0:00:55]}  e5 {[%clk 0:00:06]} 43. Kf1 {[%clk 0:00:54]}  Kd5 {[%clk 0:00:05]} 44. Ke2 {[%clk 0:00:54]}  Kc6 {[%clk 0:00:06]} 45. Kd3 {[%clk 0:00:54]}  Kb5 {[%clk 0:00:07]} 46. Ra2 {[%clk 0:00:53]}  a5 {[%clk 0:00:07]} 47. Ke4 {[%clk 0:00:52]}  Bd4 {[%clk 0:00:06]} 48. f4 {[%clk 0:00:48]}  Bc3 {[%clk 0:00:05]} 49. f5 {[%clk 0:00:48]}  Kc4 {[%clk 0:00:04]} 50. f6 {[%clk 0:00:47]}  Kb3 {[%clk 0:00:04]} 51. Re2 {[%clk 0:00:42]}  a4 {[%clk 0:00:02]} 52. f7 {[%clk 0:00:41]}  Bb4 {[%clk 0:00:03]} 53. Kxe5 {[%clk 0:00:40]}  a3 {[%clk 0:00:03]} 54. Ke6 {[%clk 0:00:35]}  a2 {[%clk 0:00:03]} 55. Rxa2 {[%clk 0:00:34]}  Kxa2 {[%clk 0:00:03]} 56. Kd7 {[%clk 0:00:34]}  Kb3 {[%clk 0:00:04]} 57. Ke8 {[%clk 0:00:34]}  Kc4 {[%clk 0:00:04]} 58. f8=Q {[%clk 0:00:34]}  Bxf8 {[%clk 0:00:05]} 1/2-1/2


[Site "https://www.chess.com"]

[Event "Titled Tuesday Blitz May 30 Early 2023"]
[White "Dominguez Rincon, Miller Duvan"]
[Black "Borodavkin, Anatoly"]
[WhiteFideId "4406583"]
[BlackFideId "14150662"]
[WhiteElo "2013"]
[BlackElo "1991"]
[Result "0-1"]
[Round "10"]
[TimeControl "180+2"]
[Date "2023.05.30"]
[WhiteClock "0:00:00"]
[BlackClock "0:00:09"]

1. e4 {[%clk 0:03:00]}  e5 {[%clk 0:02:59]} 2. Nf3 {[%clk 0:02:58]}  Nf6 {[%clk 0:03:00]} 3. Nxe5 {[%clk 0:02:54]}  d6 {[%clk 0:03:00]} 4. Nf3 {[%clk 0:02:50]}  Nxe4 {[%clk 0:03:00]} 5. Nc3 {[%clk 0:02:48]}  Nxc3 {[%clk 0:02:59]} 6. dxc3 {[%clk 0:02:48]}  Be7 {[%clk 0:02:59]} 7. Qd4 {[%clk 0:02:47]}  Bf6 {[%clk 0:02:56]} 8. Qf4 {[%clk 0:02:47]}  O-O {[%clk 0:02:52]} 9. Be3 {[%clk 0:02:46]}  Nc6 {[%clk 0:02:32]} 10. O-O-O {[%clk 0:02:45]}  Be6 {[%clk 0:02:31]} 11. a3 {[%clk 0:02:43]}  a6 {[%clk 0:02:26]} 12. g4 {[%clk 0:02:42]}  Ne5 {[%clk 0:02:13]} 13. Nxe5 {[%clk 0:02:29]}  Bxe5 {[%clk 0:02:10]} 14. Qe4 {[%clk 0:02:16]}  Bf6 {[%clk 0:01:53]} 15. h4 {[%clk 0:01:37]}  c6 {[%clk 0:01:47]} 16. g5 {[%clk 0:01:32]}  Bd5 {[%clk 0:01:47]} 17. Rxd5 {[%clk 0:01:21]}  cxd5 {[%clk 0:01:47]} 18. Qxd5 {[%clk 0:01:22]}  Be7 {[%clk 0:01:41]} 19. Bd3 {[%clk 0:01:08]}  Qd7 {[%clk 0:01:25]} 20. h5 {[%clk 0:01:06]}  Qe6 {[%clk 0:01:18]} 21. Qd4 {[%clk 0:01:00]}  Rac8 {[%clk 0:00:57]} 22. f4 {[%clk 0:00:35]}  f5 {[%clk 0:00:49]} 23. Re1 {[%clk 0:00:22]}  Qf7 {[%clk 0:00:42]} 24. Bd2 {[%clk 0:00:17]}  Rfe8 {[%clk 0:00:37]} 25. c4 {[%clk 0:00:16]}  g6 {[%clk 0:00:19]} 26. Bc3 {[%clk 0:00:15]}  Bf6 {[%clk 0:00:17]} 27. gxf6 {[%clk 0:00:12]}  Rxe1+ {[%clk 0:00:16]} 28. Bxe1 {[%clk 0:00:13]}  Re8 {[%clk 0:00:15]} 29. Bc3 {[%clk 0:00:12]}  gxh5 {[%clk 0:00:14]} 30. Bxf5 {[%clk 0:00:12]}  h6 {[%clk 0:00:13]} 31. Qg1+ {[%clk 0:00:11]}  Kf8 {[%clk 0:00:12]} 32. Qg7+ {[%clk 0:00:10]}  Qxg7 {[%clk 0:00:12]} 33. fxg7+ {[%clk 0:00:11]}  Kg8 {[%clk 0:00:12]} 34. b4 {[%clk 0:00:07]}  h4 {[%clk 0:00:11]} 35. Kb2 {[%clk 0:00:07]}  Re7 {[%clk 0:00:11]} 36. Bf6 {[%clk 0:00:05]}  Rf7 {[%clk 0:00:10]} 37. Be6 {[%clk 0:00:05]}  h3 {[%clk 0:00:10]} 38. Bxf7+ {[%clk 0:00:03]}  Kxf7 {[%clk 0:00:09]} 39. Bd4 {[%clk 0:00:00]}  h2 {[%clk 0:00:09]} 0-1


[Site "https://www.chess.com"]